Cogmind - Beta 12 @@@ ROGUE MODE // 2023.12.11 @ 00:13:48 Player: Kel Result: Self-destructed Performance ------------- Evolutions (2) 1000 Regions Visited (4) 800 Robots Destroyed (27) 135 Value Destroyed (775) 775 Prototype IDs (0) 0 Alien Tech Used (0) 0 Bonus (0) 0 TOTAL SCORE: 2710 Bonus ------- None Cogmind --------- Core Integrity 436/550 Matter 265/300 Energy 160/160 System Corruption 0% Temperature Cool (9) Movement Treading (320) Ox2 Location -8/Materials Parts ------- > --- POWER (1) -------- Light Nuclear Core > --- PROPULSION (3) --- Light Treads > --- UTILITY (4) ------ High-capacity Storage Unit Seismic Detector Targeting Computer > --- WEAPON (3) ------- Autogun High-powered Shotgun > --- INVENTORY (20) --- Improved Ion Engine Light Deuterium Engine Cryofiber Web Medium Matter Pod (100) Visual Processing Unit Faulty Experimental Sensor Array Terrain Scanner Advanced Targeting Computer Hardened Light Armor Plating Heavy EM Pulse Gun Heavy Assault Rifle Heavy Assault Rifle Heavy Assault Rifle Autogun Shotgun Improved Light Cannon Missile Launcher Impact Mace Peak State ------------ > --- POWER ------------ Light Nuclear Core > --- PROPULSION ------- Light Treads Light Treads Light Treads > --- UTILITY ---------- High-capacity Storage Unit Seismic Detector Targeting Computer Light Armor Plating > --- WEAPON ----------- Autogun Shotgun Improved Light Cannon > --- INVENTORY -------- Improved Ion Engine Light Deuterium Engine Light Treads Cryofiber Web Medium Matter Pod Visual Processing Unit Experimental Sensor Array Terrain Scanner Advanced Targeting Computer Heavy EM Pulse Gun Assault Rifle Heavy Assault Rifle Heavy Assault Rifle Heavy Assault Rifle Autogun Shotgun High-powered Shotgun Improved Light Cannon Missile Launcher Impact Mace [Rating: 21] Favorites ----------- Power Improved Ion Engine Engine Improved Ion Engine Power Core Light Nuclear Core Propulsion Light Treads Treads Light Treads Utility Light Armor Plating Device Seismic Detector Storage Large Storage Unit Processor Targeting Computer Protection Light Armor Plating Weapon EM Pulse Gun Energy Gun EM Pulse Gun Ballistic Gun Autogun Ballistic Cannon Improved Light Cannon Launcher Grenade Launcher Build | -11 -10 -10 -9 -8 ------- Run | Jun Mat Min Mat Mat Slots Evolved 4 | . . . 2 2 Power . | . . . . . Propulsion 1 | . . . . 1 Utility 2 | . . . 1 1 Weapon 1 | . . . 1 . Parts Attached 31 | 6 5 . 13 7 Power 4 | 1 1 . 1 1 Engine 3 | 1 1 . 1 . Core 1 | . . . . 1 Reactor . | . . . . . Propulsion 8 | 2 . . 3 3 Treads 8 | 2 . . 3 3 Leg . | . . . . . Wheel . | . . . . . Hover . | . . . . . Flight . | . . . . . Utility 8 | 1 3 . 2 2 Device 1 | . . . 1 . Storage 4 | 1 2 . . 1 Processor 1 | . . . 1 . Hackware . | . . . . . Protection 2 | . 1 . . 1 Artifact . | . . . . . Weapon 11 | 2 1 . 7 1 Energy Gun 2 | 1 . . 1 . Energy Cannon . | . . . . . Ballistic Gun 5 | 1 1 . 2 1 Ballistic Cannon 1 | . . . 1 . Launcher 3 | . . . 3 . Special Weapon . | . . . . . Impact Weapon . | . . . . . Slashing Weapon . | . . . . . Piercing Weapon . | . . . . . Special Melee Weapon . | . . . . . Unidentified Prototypes . | . . . . . Parts Lost 12 | . . . 6 6 Power 1 | . . . 1 . Propulsion 4 | . . . 1 3 Utility 2 | . . . 1 1 Weapon 5 | . . . 3 2 Highest Loss Streak 5 | . . . 5 4 To Critical Strikes . | . . . . . Average Slot Usage (%) 97 | . 98 100 95 96 Engine 8 | . 14 14 10 2 Core 2 | . . . . 6 Treads 25 | . 28 28 21 25 Device 4 | . . . 5 9 Storage 11 | . 14 14 11 9 Processor 6 | . . . 11 9 Protection 9 | . 12 14 4 7 Energy Gun 6 | . 14 14 4 . Ballistic Gun 15 | . 14 14 15 18 Ballistic Cannon 4 | . . . 5 8 Launcher 1 | . . . 4 . Naked Turns . | . . . . . Heaviest Build 59 | 11 51 34 38 59 Greatest Support 60 | 40 40 40 40 60 Greatest Overweight (x) 12 | 2 1 . 12 2 Average Overweight (x) . | . . . . . Largest Inventory Capacity 20 | 8 20 15 15 20 Average Capacity 15 | 7 9 15 15 18 Most Carried 20 | 6 12 15 15 20 Average Carried 13 | 4 7 13 14 16 Final Capacity 20 | 8 15 15 15 20 Final Carried 18 | 6 12 15 15 18 Class Distribution -------------------- 59% | Mutant 40% | Gunner Dominant Class ---------------- Mutant | -10/Materials Mutant | -10/Mines Mutant | -9/Materials Gunner | -8/Materials Resources | -11 -10 -10 -9 -8 ----------- Run | Jun Mat Min Mat Mat Matter Collected 964 | 155 51 213 328 217 Remotely . | . . . . . Salvage Created 872 | . . 105 550 217 Parts 53 | . . 4 36 13 Haulers Intercepted . | . . . . . Recyclers Shooed 1 | . . . 1 . Parts Field Recycled . | . . . . . Retrieved Matter . | . . . . . Parts Self-Destructed . | . . . . . Prevented . | . . . . . Kills | -11 -10 -10 -9 -8 ------- Run | Jun Mat Min Mat Mat Combat Hostiles Destroyed 23 | . . 2 16 5 Guns 18 | . . 1 13 4 Cannons 2 | . . . 1 1 AOE 3 | . . 1 2 . Classes Destroyed 7 | . . 1 4 2 Worker 1 | . . . . 1 Recycler 1 | . . . 1 . Watcher 2 | . . . 1 1 Swarmer 8 | . . . 8 . Grunt 7 | . . 2 4 1 Sentry 7 | . . . 4 3 Hunter 1 | . . . . 1 Best Kill Streak 7 | . . 2 7 2 Combat Bots Only 6 | . . 2 6 1 Max Kills in Single Turn 2 | . . 1 2 1 Gunslinging . | . . . . . Exploded 2 | . . 1 2 . Melee . | . . . . . Uniques/NPCs Destroyed . | . . . . . Combat | -11 -10 -10 -9 -8 -------- Run | Jun Mat Min Mat Mat Damage Taken 1877 | . . 64 998 815 Core 293 | . . . 179 114 Absorbed by Shields . | . . . . . Core Remaining (%) 85 | 100 . 100 55 . Volleys Fired 55 | . . 3 34 18 Largest 3 | . . 2 3 3 Hottest 87 | . . 60 85 87 Shots Fired 127 | . . 6 67 54 Gun 98 | . . 6 56 36 Cannon 29 | . . . 11 18 Launcher . | . . . . . Special . | . . . . . Kinetic 116 | . . 3 59 54 Thermal . | . . . . . Explosive . | . . . . . Electromagnetic 11 | . . 3 8 . Robot Hit Streak 15 | . . 5 13 15 Robot Miss Streak 3 | . . 1 3 3 Penetration Max . | . . . . . Secondary Targets 1 | . . . 1 . Max Gunslinging Chain 1 | . . . 1 . Shots Hit Robots 86 | . . 5 43 38 Core Hits 45 | . . 3 28 14 Critical Kills . | . . . . . Critical Parts Destroyed . | . . . . . Critical Strikes 2 | . . . 2 . Blast 1 | . . . 1 . Corrupt 1 | . . . 1 . Melee Attacks . | . . . . . Impact . | . . . . . Slashing . | . . . . . Piercing . | . . . . . Sneak Attacks . | . . . . . Combat Hostiles . | . . . . . Follow-up Attacks . | . . . . . Damage Inflicted 1601 | . . 125 852 624 Guns 1082 | . . 64 621 397 Cannons 312 | . . . 123 189 Explosions 155 | . . 61 94 . Melee . | . . . . . Ramming 52 | . . . 14 38 Kinetic 1288 | . . 25 677 586 Thermal 155 | . . 61 94 . Explosive . | . . . . . Electromagnetic 106 | . . 39 67 . Impact . | . . . . . Slashing . | . . . . . Piercing . | . . . . . Highest Corruption . | . . . . . Average Corruption . | . . . . . Corruption Purged . | . . . . . Corruption Blocked . | . . . . . Overload Shots . | . . . . . Overflow Damage . | . . . . . Projectiles . | . . . . . Explosions . | . . . . . Melee . | . . . . . Knockbacks 3 | . . . 1 2 Impact . | . . . . . Kinetic 3 | . . . 1 2 Secondary . | . . . . . Self-Inflicted Damage 67 | . . 45 22 . Shots 2 | . . 1 1 . Rammed 4 | . . . 1 3 Targets Rammed 5 | . . . 1 4 Kicked . | . . . . . Crushed 1 | . . . . 1 Highest Temperature 90 | . . 36 72 90 Average Temperature 21 | . . 19 14 27 Received Heat Transfer 537 | . . 12 372 153 Siege Activations . | . . . . . Robots Corrupted . | . . . . . Combat Hostiles . | . . . . . Parts Fried . | . . . . . Impact Corruptions . | . . . . . Robots Melted . | . . . . . Combat Hostiles . | . . . . . Parts Melted . | . . . . . Heat Transferred 200 | . . 50 150 . Parts Sabotaged . | . . . . . Parts Stolen . | . . . . . Parts Stripped . | . . . . . Power Chain Reactions 2 | . . 1 1 . Missiles Intercepted . | . . . . . Alert | -11 -10 -10 -9 -8 ------- Run | Jun Mat Min Mat Mat Peak Influence 313 | . 27 60 313 252 Initial 103 | . . 10 23 103 Average 88 | . 17 28 167 107 Maximum Alert Level 1 | . . . 1 1 Low Security (%) 88 | 100 100 100 67 92 Level 1 11 | . . . 32 8 Level 2 . | . . . . . Level 3 . | . . . . . Level 4 . | . . . . . Level 5 . | . . . . . High Security . | . . . . . Max Security . | . . . . . Squads Dispatched 2 | . 1 . . 1 Investigation 2 | . 1 . . 1 Extermination . | . . . . . Reinforcement . | . . . . . Assault . | . . . . . Garrison . | . . . . . Intercept . | . . . . . Searches Triggered . | . . . . . Construction Impeded . | . . . . . Haulers Reinforced . | . . . . . Active Scanning Responses . | . . . . . Cargo Convoy Interrupts . | . . . . . Stealth | -11 -10 -10 -9 -8 --------- Run | Jun Mat Min Mat Mat Distress Signals . | . . . . . Communications Jammed . | . . . . . Distress Signals . | . . . . . Times Spotted 40 | . 2 2 19 17 Peak Tracking Total 7 | . 2 2 7 3 Tactical Retreats 1 | . . . 1 . Traps | -11 -10 -10 -9 -8 ------- Run | Jun Mat Min Mat Mat Traps Triggered 5 | . 1 . 2 2 Indirectly . | . . . . . Trap Hack Attempts . | . . . . . Triggered . | . . . . . Disarmed . | . . . . . Reprogrammed . | . . . . . Reused . | . . . . . Traps Extracted . | . . . . . Installed . | . . . . . Triggered . | . . . . . Most Traps Carried 3 | . . 3 3 . Machines | -11 -10 -10 -9 -8 ---------- Run | Jun Mat Min Mat Mat Machines Disabled . | . . . . . Max in Single Turn . | . . . . . Machines Repaired . | . . . . . Machines Sabotaged . | . . . . . Overloaded Fab Kills . | . . . . . Hacking | -11 -10 -10 -9 -8 --------- Run | Jun Mat Min Mat Mat Machines Accessed 7 | . 5 . . 2 Terminals 7 | . 5 . . 2 Fabricators . | . . . . . Repair Stations . | . . . . . Recycling Units . | . . . . . Scanalyzers . | . . . . . Garrison Access . | . . . . . Total Hacks 20 | . 16 . . 4 Successful 13 | . 10 . . 3 Failed 7 | . 6 . . 1 Catastrophic . | . . . . . Database Lockouts . | . . . . . Manual 18 | . 14 . . 4 Terminals 20 | . 16 . . 4 Fabricators . | . . . . . Repair Stations . | . . . . . Recycling Units . | . . . . . Scanalyzers . | . . . . . Garrison Access . | . . . . . Terminal Hacks 4 | . 3 . . 1 Branch Access Points 1 | . 1 . . . Locate Traps 1 | . 1 . . . Zone Layout 2 | . 1 . . 1 Fabricator Hacks . | . . . . . Repair Station Hacks . | . . . . . Recycling Unit Hacks . | . . . . . Scanalyzer . | . . . . . Garrison Access Hacks . | . . . . . Unauthorized Hacks 9 | . 7 . . 2 Terminals 9 | . 7 . . 2 Assimilate 3 | . 3 . . . Botnet 6 | . 4 . . 2 Fabricators . | . . . . . Repair Stations . | . . . . . Recycling Units . | . . . . . Scanalyzers . | . . . . . Garrison Access . | . . . . . Data Cores Recovered . | . . . . . Used . | . . . . . Hacking Detections 7 | . 5 . . 2 Full Trace Events . | . . . . . Feedback Events . | . . . . . Feedback Blocked . | . . . . . Robot Schematics Acquired . | . . . . . Robots Built . | . . . . . Authchips . | . . . . . Time . | . . . . . Total Robot Build Rating . | . . . . . Part Schematics Acquired . | . . . . . Parts Built . | . . . . . Authchips . | . . . . . Time . | . . . . . Total Part Build Rating . | . . . . . Parts Repaired . | . . . . . Time . | . . . . . Parts Recycled . | . . . . . Recycled Matter . | . . . . . Retrieved Matter . | . . . . . Retrieved Components . | . . . . . Parts Scanalyzed . | . . . . . Part Schematics Acquired . | . . . . . Parts Damaged . | . . . . . Bothacking | -11 -10 -10 -9 -8 ------------ Run | Jun Mat Min Mat Mat Used RIF Installer . | . . . . . Robots Hacked . | . . . . . Non-combat . | . . . . . Combat . | . . . . . Robot Hacks Applied . | . . . . . Relay Couplers Released . | . . . . . Fabnet Peak Effective % . | . . . . . Robots Rewired . | . . . . . Allies Hacked . | . . . . . Hacks Repelled . | . . . . . Allies | -11 -10 -10 -9 -8 -------- Run | Jun Mat Min Mat Mat Total Allies . | . . . . . Largest Group . | . . . . . Highest-Rated Group . | . . . . . Highest-Rated Ally . | . . . . . Total Orders . | . . . . . Ally Attacks . | . . . . . Total Damage . | . . . . . Kills . | . . . . . Allies Corrupted . | . . . . . Allies Melted . | . . . . . Intel | -11 -10 -10 -9 -8 ------- Run | Jun Mat Min Mat Mat Robot Analysis Total . | . . . . . Derelict Logs Recovered 2 | . . 2 . . Drone Launches . | . . . . . Drone Recoveries . | . . . . . Exploration | -11 -10 -10 -9 -8 ------------- Run | Jun Mat Min Mat Mat Turns Passed 2980 | 85 390 733 772 1000 Spaces Moved 1614 | 53 233 438 376 514 Core 16 | 15 . . 1 . Treads 1598 | 38 233 438 375 514 Legs . | . . . . . Wheels . | . . . . . Hover . | . . . . . Flight . | . . . . . Fastest Speed 50 | 50 160 160 160 160 Average Speed 165 | 133 160 160 170 171 Slowest Speed 650 | 160 240 160 650 320 Overloaded Moves . | . . . . . Propulsion Burnouts . | . . . . . Robots Hopped . | . . . . . Cave-ins Triggered . | . . . . . Exploration Rate (%) 40 | 6 42 85 30 39 Regions Visited 4 Branch Regions 1 Pre-discovered Areas 1 | . . 1 . . Known Exits Taken 1 | . 1 . . . Unknown Exits Taken 3 | 1 . 1 1 . Scrap Searched . | . . . . . Spaces Dug . | . . . . . Terrain Destroyed 12 | . . 10 2 . Melee . | . . . . . Projectile . | . . . . . AOE 12 | . . 10 2 . Terrain Rammed . | . . . . . Walls Destroyed . | . . . . . Machines Disabled . | . . . . . Actions | -11 -10 -10 -9 -8 --------- Run | Jun Mat Min Mat Mat Total 1824 | 64 254 465 443 598 Wait 62 | . . 20 3 39 Move 1610 | 52 232 437 375 514 Hop . | . . . . . Pick Up 42 | 6 9 4 12 11 Fast Attach 14 | 6 2 . 6 . Attach 12 | . . . 7 5 Detach 1 | . 1 . . . Swap 5 | . 3 . . 2 Drop 18 | . 7 1 5 5 Fire 55 | . . 3 34 18 Melee . | . . . . . Ram . | . . . . . Kick . | . . . . . Crush 5 | . . . 1 4 Escape Stasis . | . . . . . Rewire . | . . . . . Trap . | . . . . . Miscellaneous . | . . . . . Route ------- -11/Junkyard -10/Materials -10/Mines -9/Materials (discovered 2 exits: *Mat / Min) -8/Materials History --------- Turn | Location | Event 2 | -11/Junkyard | Met Revision 17 9 | -11/Junkyard | Discovered new exit (range 16) 86 | -11/Junkyard | Entered Materials 300 | -10/Materials | Build established: Mutant 405 | -10/Materials | Identified exit to Mines 476 | -10/Materials | Entered Mines 484 | -10/Mines | Met a Derelict bent on vengeance 496 | -10/Mines | Learned location of Storage (-7) 744 | -10/Mines | Found a hidden stash of uninstalled traps 1166 | -10/Mines | Found a damaged Exp. Sensor Array with a note attached 1171 | -10/Mines | Found Prototype Device 1196 | -10/Mines | Discovered new exit (range 8) 1209 | -10/Mines | Entered Materials 1209 | -9/Materials | Evolved 2 slots: Utility x1, Weapon x1 1210 | -9/Materials | Identified exit to Mines 1616 | -9/Materials | Lost 5 parts (1p1u3w) 1896 | -9/Materials | Discovered new exit (range 14) 1981 | -9/Materials | Entered another Materials area 1981 | -8/Materials | Evolved 2 slots: Propulsion x1, Utility x1 2069 | -8/Materials | Build established: Gunner 2855 | -8/Materials | Lost 4 parts (2n1u1w) 2981 | -8/Materials | Self-destructed Last Messages --------------- 02821_ Lgt. Treads destroyed. 02824_ U-05 Engineer builds a Door. 02824_ Penetrated by Slug. 02824_ Lgt. Armor Plating destroyed. 02827_ Penetrated by Slug. 02828_ U-05 Engineer builds a Door. 02830_ H-55 Commando destroyed. 02834_ Acquired 12 matter. 02841_ Acquired 8 matter. 02846_ Acquired 18 matter. 02851_ Acquired 5 matter. 02856_ Acquired 3 matter. 02861_ K-01 Serf collects debris. 02966_ Triggered Alarm Trap. 02966_ An alarm sounds. 02966_ ALERT: Alarm triggered, dispatching investigation squad. 02976_ Penetrated by Slug. 02978_ Imp. Light Cannon destroyed. 02978_ Lgt. Treads blasted off. 02978_ Acquired 3 matter. Map ----- +----------------------------------------------------+ | | | | | | | | | | | | | | | | | | | | | | | | | | | | | | | | | ?????????????????????????????????????????????????? | | ?????????????????????????????????????????????????? | | ?????????????????????????????????????????????????? | | ??????????????????????????###############????????? | | ??????????????????????????# #????????? | | ??????????????????????????# ########### #?######## | | ??????????# ????????????# #! #??# #?#] # | | ??????????# ########## # !#??# #?# !# | | ????????? g % % # #??# #?# "S # | | ?????H??? @ ; """" #??# #?# """ # | | ????????? g t + """" #??# #?# "" # | | ????????????####+######### # """" #??# #?# % # | | ?????????????????????????# u########### #####+#### | | ?????????????????????????# ^ + | | ?????????????????????????# ### | | ?????????????????????????# ### | | ?????????????????????????# ^ | | ?????????????????????????# ^ | | ?????????????????????????# ### | | ?????????????????????????# ################ ##?? | | ?????????????????????????## ### #???????# #??? | | ??????????????????????????? #?# #???????# #??? | | ??????????????????????????? #?# ######### #??? | | ??????????????????????????? ??# # """ ## #??? | | ??????????????????????????? ??#####+# """ ## #??? | | ??????????????????????????? ??????# + """ ## #??? | | ?????????????????????###??? ??????# # ## #??? | | ?????????????????? ##### # ## #??? | | ?????????????????? + ## #??? | | ?????????????????? ##### ##+######+#### | | ?????????????????????###??????????# #### | | ??????????????????????????????????# % + | | ??????????????????????????????#####+####### | | ??????????????????????????????# [ #?# | +----------------------------------------------------+ Best States ------------- Heat Dissipation 31 Energy Generation 14 Energy Capacity 265 Matter Stores 300 Matter Capacity 300 Sight Range 16 Terrain Scan Density 10 Armor Coverage 150 Evasion (%) 50 Targeting Accuracy 5 Recoil Reduction 3 Item Schematics ----------------- None Robot Schematics ------------------ None Fabricated ------------ Nothing Alien Tech Used ----------------- None Achievements -------------- None Challenges ------------ None Game ------ Seed SwarmMicrowarpChainsword Manual? 0 Play Time 00:23:47 Cumulative 19.9 hours Start 2023.12.10 @ 23:48:00 End 2023.12.11 @ 00:13:48 Sessions 1 Manual Loads 0 Difficulty Rogue Special Mode None Game No. 38 Rogue 38 Adventurer 0 Explorer 0 Win Type - Total 0 Types 0/0/0/0/0/0/0/0/0 Lore% 22 Gallery% 23 Achievement% 21 Wizard Run 0 Options --------- ASCII 0 Keyboard 1 Movement Numpad Keybinds 0 Fullscreen 1 Font 18/Terminus Map View 76x50 Tactical HUD 1 Map Filters NONE Filters NONE Steam 1 RUN: 9a87d477-d1a6-4d96-9bf0-7516153784e9